[Event "*** SCC Grand Prix: Titled Tuesday Blitz"]
[Site "Chess.com"]
[Date "2020.08.11"]
[Round "3"]
[White "ailime26"]
[Black "ViktoriyaTarasova"]
[Result "0-1"]
[WhiteElo "1887"]
[BlackElo "2264"]
[TimeControl "180+1"]
[EndTime "10:28:43 PDT"]
[Termination "ViktoriyaTarasova won by checkmate"]

1. e4 {[%clk 0:03:00.9]} 1... c5 {[%clk 0:02:59.2]} 2. Nf3 {[%clk 0:02:59]} 2...
d6 {[%clk 0:02:59.4]} 3. d4 {[%clk 0:02:59]} 3... cxd4 {[%clk 0:02:59.8]} 4.
Nxd4 {[%clk 0:02:59.9]} 4... Nf6 {[%clk 0:03:00.3]} 5. Nc3 {[%clk 0:03:00]} 5...
a6 {[%clk 0:03:00.9]} 6. Be3 {[%clk 0:02:59.8]} 6... e5 {[%clk 0:03:00.2]} 7.
Nb3 {[%clk 0:02:59.2]} 7... Be7 {[%clk 0:02:59.3]} 8. f3 {[%clk 0:02:58.7]} 8...
Be6 {[%clk 0:02:56.1]} 9. Qd2 {[%clk 0:02:58.4]} 9... Nbd7 {[%clk 0:02:47.3]}
10. O-O-O {[%clk 0:02:58.1]} 10... O-O {[%clk 0:02:46.5]} 11. g4 {[%clk
0:02:57.3]} 11... b5 {[%clk 0:02:44.3]} 12. h4 {[%clk 0:02:56.3]} 12... Rc8
{[%clk 0:02:39.5]} 13. h5 {[%clk 0:02:54.7]} 13... Nb6 {[%clk 0:02:35.4]} 14. g5
{[%clk 0:02:53.6]} 14... Nfd7 {[%clk 0:02:34.9]} 15. g6 {[%clk 0:02:52.7]} 15...
Nc4 {[%clk 0:02:28.7]} 16. Qf2 {[%clk 0:02:41.9]} 16... Qc7 {[%clk 0:01:53.9]}
17. h6 {[%clk 0:02:36.6]} 17... fxg6 {[%clk 0:01:17.2]} 18. hxg7 {[%clk
0:01:55.5]} 18... Rf7 {[%clk 0:01:04.2]} 19. Bh6 {[%clk 0:01:40.2]} 19... Nxb2
{[%clk 0:01:01.3]} 20. Kxb2 {[%clk 0:01:20.9]} 20... Qxc3+ {[%clk 0:01:00.5]}
21. Kb1 {[%clk 0:01:19.6]} 21... Nc5 {[%clk 0:00:56.5]} 22. Bd2 {[%clk
0:01:13.7]} 22... Nxe4 {[%clk 0:00:56.1]} 23. Qe1 {[%clk 0:00:38.2]} 23... Nxd2+
{[%clk 0:00:54.6]} 24. Rxd2 {[%clk 0:00:35.5]} 24... Bg5 {[%clk 0:00:46.4]} 25.
Rg2 {[%clk 0:00:31.5]} 25... Qxe1+ {[%clk 0:00:45.3]} 26. Kb2 {[%clk 0:00:27.2]}
26... Qc3+ {[%clk 0:00:45]} 27. Kb1 {[%clk 0:00:26.9]} 27... Bxb3 {[%clk
0:00:44.4]} 28. axb3 {[%clk 0:00:25.2]} 28... Qe1+ {[%clk 0:00:43.5]} 29. Kb2
{[%clk 0:00:24.3]} 29... Qc1+ {[%clk 0:00:43]} 30. Ka2 {[%clk 0:00:22.6]} 30...
Rxc2+ {[%clk 0:00:43]} 31. Rxc2 {[%clk 0:00:22.8]} 31... Qxc2+ {[%clk
0:00:43.6]} 32. Ka1 {[%clk 0:00:22.9]} 32... Be3 {[%clk 0:00:43.2]} 33. Bh3
{[%clk 0:00:20.3]} 33... Bd4# {[%clk 0:00:43.4]} 0-1

[Event "*** SCC Grand Prix: Titled Tuesday Blitz"]
[Site "Chess.com"]
[Date "2020.08.11"]
[Round "3"]
[White "Andreikka"]
[Black "vova-79"]
[Result "1-0"]
[WhiteElo "2832"]
[BlackElo "2450"]
[TimeControl "180+1"]
[EndTime "10:28:45 PDT"]
[Termination "Andreikka won by resignation"]

1. c4 {[%clk 0:03:00.9]} 1... c6 {[%clk 0:02:59.2]} 2. Nf3 {[%clk 0:02:58.3]}
2... d5 {[%clk 0:02:59.1]} 3. d4 {[%clk 0:02:59.2]} 3... Nf6 {[%clk 0:02:58.5]}
4. e3 {[%clk 0:02:57.6]} 4... e6 {[%clk 0:02:58.4]} 5. Bd3 {[%clk 0:02:56.5]}
5... Nbd7 {[%clk 0:02:57.9]} 6. b3 {[%clk 0:02:55.5]} 6... Bb4+ {[%clk
0:02:45.7]} 7. Nbd2 {[%clk 0:02:54.9]} 7... Ne4 {[%clk 0:02:45.8]} 8. O-O {[%clk
0:02:51.3]} 8... Nxd2 {[%clk 0:02:43.1]} 9. Bxd2 {[%clk 0:02:47.5]} 9... Bxd2
{[%clk 0:02:39.5]} 10. Qxd2 {[%clk 0:02:48.4]} 10... O-O {[%clk 0:02:39.2]} 11.
e4 {[%clk 0:02:46.3]} 11... dxe4 {[%clk 0:02:38]} 12. Bxe4 {[%clk 0:02:46.1]}
12... c5 {[%clk 0:02:37.3]} 13. Rad1 {[%clk 0:02:16.1]} 13... Nf6 {[%clk
0:02:34.4]} 14. Bc2 {[%clk 0:02:15.9]} 14... b6 {[%clk 0:02:24.4]} 15. dxc5
{[%clk 0:02:01]} 15... Qxd2 {[%clk 0:02:23]} 16. Rxd2 {[%clk 0:02:01.9]} 16...
bxc5 {[%clk 0:02:23.4]} 17. Ne5 {[%clk 0:02:02.4]} 17... Re8 {[%clk 0:01:27.7]}
18. Rfd1 {[%clk 0:01:41.5]} 18... h6 {[%clk 0:01:26.7]} 19. f3 {[%clk
0:01:36.5]} 19... Kf8 {[%clk 0:01:24.5]} 20. Kf2 {[%clk 0:00:49.5]} 20... Ke7
{[%clk 0:01:20.3]} 21. Ke3 {[%clk 0:00:41.5]} 21... Kf8 {[%clk 0:00:55.3]} 22.
b4 {[%clk 0:00:37.2]} 22... cxb4 {[%clk 0:00:52.9]} 23. Ba4 {[%clk 0:00:35.6]}
23... Bb7 {[%clk 0:00:33.4]} 24. Bxe8 {[%clk 0:00:31.1]} 24... Kxe8 {[%clk
0:00:32.7]} 25. Rb1 {[%clk 0:00:22.9]} 25... a5 {[%clk 0:00:31.4]} 26. a3 {[%clk
0:00:23.5]} 1-0

[Event "*** SCC Grand Prix: Titled Tuesday Blitz"]
[Site "Chess.com"]
[Date "2020.08.11"]
[Round "3"]
[White "Supernotar"]
[Black "FairChess_on_YouTube"]
[Result "0-1"]
[WhiteElo "2696"]
[BlackElo "2992"]
[TimeControl "180+1"]
[EndTime "10:28:46 PDT"]
[Termination "FairChess_on_YouTube won by checkmate"]

1. d4 {[%clk 0:03:00.9]} 1... Nf6 {[%clk 0:02:53.8]} 2. c4 {[%clk 0:03:01]} 2...
e6 {[%clk 0:02:52.6]} 3. Nf3 {[%clk 0:03:00.6]} 3... d5 {[%clk 0:02:48.7]} 4. e3
{[%clk 0:03:00.2]} 4... a6 {[%clk 0:02:43.9]} 5. Nbd2 {[%clk 0:02:59.6]} 5... c5
{[%clk 0:02:40.5]} 6. dxc5 {[%clk 0:02:54]} 6... Bxc5 {[%clk 0:02:38.5]} 7. a3
{[%clk 0:02:54.1]} 7... O-O {[%clk 0:02:32.7]} 8. b4 {[%clk 0:02:53.4]} 8... Ba7
{[%clk 0:02:33.2]} 9. Bb2 {[%clk 0:02:51.4]} 9... Nc6 {[%clk 0:02:33.3]} 10. Be2
{[%clk 0:02:50.9]} 10... d4 {[%clk 0:02:27.9]} 11. exd4 {[%clk 0:02:45.5]} 11...
Nxd4 {[%clk 0:02:19.1]} 12. c5 {[%clk 0:02:42.6]} 12... Nxe2 {[%clk 0:02:15.7]}
13. Qxe2 {[%clk 0:02:43]} 13... b6 {[%clk 0:02:15.6]} 14. cxb6 {[%clk
0:02:33.9]} 14... Bxb6 {[%clk 0:02:16.5]} 15. Nc4 {[%clk 0:02:30.2]} 15... Bc7
{[%clk 0:02:14.3]} 16. O-O {[%clk 0:02:29]} 16... Bb7 {[%clk 0:02:13.2]} 17.
Rfd1 {[%clk 0:02:25.6]} 17... Qe7 {[%clk 0:02:11.8]} 18. Nce5 {[%clk 0:02:25.1]}
18... Rac8 {[%clk 0:02:05.6]} 19. Rac1 {[%clk 0:02:22.2]} 19... Bb8 {[%clk
0:02:04.8]} 20. h3 {[%clk 0:02:21.1]} 20... h6 {[%clk 0:02:03.3]} 21. Bd4 {[%clk
0:02:20]} 21... Rxc1 {[%clk 0:02:01.7]} 22. Rxc1 {[%clk 0:02:19.1]} 22... Rd8
{[%clk 0:02:00.5]} 23. Bb6 {[%clk 0:02:09]} 23... Rc8 {[%clk 0:01:51.6]} 24.
Rxc8+ {[%clk 0:02:02.9]} 24... Bxc8 {[%clk 0:01:52.5]} 25. Bc5 {[%clk
0:01:54.1]} 25... Qb7 {[%clk 0:01:49.8]} 26. Qd3 {[%clk 0:01:49.8]} 26... Nd5
{[%clk 0:01:46.7]} 27. Qd4 {[%clk 0:01:43.3]} 27... f6 {[%clk 0:01:42]} 28. Nc4
{[%clk 0:01:42.7]} 28... e5 {[%clk 0:01:40.3]} 29. Qd3 {[%clk 0:01:36]} 29...
Be6 {[%clk 0:01:32.5]} 30. Na5 {[%clk 0:01:26.8]} 30... Qc8 {[%clk 0:01:29.5]}
31. Nd2 {[%clk 0:01:20.9]} 31... Nf4 {[%clk 0:01:27.4]} 32. Qe4 {[%clk
0:01:12.9]} 32... Bd5 {[%clk 0:01:25.6]} 33. Qc2 {[%clk 0:01:00.9]} 33... Bxg2
{[%clk 0:01:22.4]} 34. Ne4 {[%clk 0:00:57.6]} 34... Qxh3 {[%clk 0:01:13.6]} 35.
Ng3 {[%clk 0:00:53]} 35... Bd5 {[%clk 0:01:05.5]} 36. f3 {[%clk 0:00:34]} 36...
Qxg3+ {[%clk 0:01:05]} 37. Kf1 {[%clk 0:00:30.9]} 37... Qxf3+ {[%clk 0:01:04]}
38. Bf2 {[%clk 0:00:28.2]} 38... Qh1+ {[%clk 0:00:58.5]} 39. Bg1 {[%clk
0:00:28.3]} 39... Bg2+ {[%clk 0:00:50.9]} 40. Kf2 {[%clk 0:00:27.5]} 40... Ba7+
{[%clk 0:00:51.1]} 41. Kg3 {[%clk 0:00:25.2]} 41... Qh3# {[%clk 0:00:51]} 0-1

[Event "*** SCC Grand Prix: Titled Tuesday Blitz"]
[Site "Chess.com"]
[Date "2020.08.11"]
[Round "3"]
[White "crescentmoon2411"]
[Black "albano87"]
[Result "0-1"]
[WhiteElo "2755"]
[BlackElo "2533"]
[TimeControl "180+1"]
[EndTime "10:28:50 PDT"]
[Termination "albano87 won by resignation"]

1. c4 {[%clk 0:03:00.9]} 1... e6 {[%clk 0:02:54.6]} 2. Nc3 {[%clk 0:03:00.2]}
2... d5 {[%clk 0:02:54.3]} 3. d4 {[%clk 0:02:59.5]} 3... Nf6 {[%clk 0:02:53.7]}
4. cxd5 {[%clk 0:02:58.9]} 4... exd5 {[%clk 0:02:52.7]} 5. Bg5 {[%clk
0:02:57.7]} 5... Nbd7 {[%clk 0:02:51.6]} 6. e3 {[%clk 0:02:55.3]} 6... Be7
{[%clk 0:02:51.7]} 7. Bd3 {[%clk 0:02:53.1]} 7... O-O {[%clk 0:02:51]} 8. Nge2
{[%clk 0:02:42.4]} 8... c5 {[%clk 0:02:48.2]} 9. O-O {[%clk 0:02:34.7]} 9... h6
{[%clk 0:02:41.6]} 10. Bh4 {[%clk 0:02:28.9]} 10... b6 {[%clk 0:02:39.7]} 11.
Rc1 {[%clk 0:02:13.4]} 11... Bb7 {[%clk 0:02:39.6]} 12. Bg3 {[%clk 0:01:58]}
12... Ne4 {[%clk 0:02:37.7]} 13. Bxe4 {[%clk 0:01:49]} 13... dxe4 {[%clk
0:02:38.6]} 14. d5 {[%clk 0:01:48.5]} 14... Bf6 {[%clk 0:02:34.9]} 15. Qc2
{[%clk 0:01:22.3]} 15... Re8 {[%clk 0:02:23.9]} 16. Nxe4 {[%clk 0:01:16.5]}
16... Bxb2 {[%clk 0:02:18]} 17. Qxb2 {[%clk 0:00:49.7]} 17... Rxe4 {[%clk
0:02:16]} 18. Nc3 {[%clk 0:00:49.1]} 18... Re8 {[%clk 0:02:09.3]} 19. Nb5 {[%clk
0:00:42.7]} 19... Ba6 {[%clk 0:01:55.1]} 20. Rfd1 {[%clk 0:00:42.1]} 20... Bxb5
{[%clk 0:01:50.6]} 21. Qxb5 {[%clk 0:00:43]} 21... Nf6 {[%clk 0:01:51]} 22. Bh4
{[%clk 0:00:26.9]} 22... Qd6 {[%clk 0:01:39.5]} 23. Bxf6 {[%clk 0:00:25.3]}
23... Qxf6 {[%clk 0:01:34.5]} 24. h3 {[%clk 0:00:16.1]} 24... Rad8 {[%clk
0:01:30.5]} 25. Rc2 {[%clk 0:00:14.8]} 25... Re5 {[%clk 0:01:22.8]} 26. Rcd2
{[%clk 0:00:13.9]} 26... Rd6 {[%clk 0:01:20.4]} 27. Qc4 {[%clk 0:00:12.2]} 27...
Qd8 {[%clk 0:01:11.9]} 28. e4 {[%clk 0:00:09.1]} 28... f5 {[%clk 0:01:12.2]} 29.
exf5 {[%clk 0:00:08]} 29... Rxf5 {[%clk 0:01:10]} 30. a4 {[%clk 0:00:07.9]}
30... Qe7 {[%clk 0:01:05.8]} 31. Re2 {[%clk 0:00:07.8]} 31... Qf7 {[%clk
0:01:01.3]} 32. Re6 {[%clk 0:00:06.2]} 32... Rfxd5 {[%clk 0:00:52]} 33. Rxd5
{[%clk 0:00:04.1]} 33... Qxe6 {[%clk 0:00:48.5]} 0-1

[Event "*** SCC Grand Prix: Titled Tuesday Blitz"]
[Site "Chess.com"]
[Date "2020.08.11"]
[Round "3"]
[White "baki83"]
[Black "The_Machine04"]
[Result "1-0"]
[WhiteElo "2728"]
[BlackElo "2251"]
[TimeControl "180+1"]
[EndTime "10:28:50 PDT"]
[Termination "baki83 won on time"]

1. e4 {[%clk 0:03:00.9]} 1... d6 {[%clk 0:02:59.7]} 2. d4 {[%clk 0:02:59.9]}
2... Nf6 {[%clk 0:02:59.8]} 3. Nc3 {[%clk 0:03:00.3]} 3... e5 {[%clk 0:03:00.1]}
4. Nge2 {[%clk 0:02:59.6]} 4... Nc6 {[%clk 0:02:59.5]} 5. h3 {[%clk 0:02:57]}
5... g6 {[%clk 0:02:57.8]} 6. g4 {[%clk 0:02:51.2]} 6... h5 {[%clk 0:02:50.6]}
7. g5 {[%clk 0:02:46.8]} 7... Nh7 {[%clk 0:02:50.5]} 8. Rg1 {[%clk 0:02:04.8]}
8... Be7 {[%clk 0:02:28.5]} 9. d5 {[%clk 0:01:48.4]} 9... Nb8 {[%clk 0:01:56.3]}
10. h4 {[%clk 0:01:48]} 10... Bg4 {[%clk 0:01:46.3]} 11. Qd3 {[%clk 0:01:39.7]}
11... Nd7 {[%clk 0:01:20]} 12. f3 {[%clk 0:01:32.5]} 12... Nc5 {[%clk 0:01:19]}
13. Qe3 {[%clk 0:01:31.7]} 13... Bd7 {[%clk 0:01:17.9]} 14. Bd2 {[%clk 0:01:11]}
14... f6 {[%clk 0:00:42.5]} 15. gxf6 {[%clk 0:01:05.9]} 15... Bxf6 {[%clk
0:00:43.4]} 16. O-O-O {[%clk 0:01:04.7]} 16... Qe7 {[%clk 0:00:31.3]} 17. Rxg6
{[%clk 0:00:57.6]} 17... O-O-O {[%clk 0:00:26.6]} 18. b4 {[%clk 0:00:57]} 18...
Na6 {[%clk 0:00:21]} 19. Qxa7 {[%clk 0:00:55.1]} 19... Be8 {[%clk 0:00:08.6]}
20. Rg1 {[%clk 0:00:45.1]} 20... Nb8 {[%clk 0:00:05.3]} 21. Ng3 {[%clk
0:00:35.7]} 21... Bd7 {[%clk 0:00:03.5]} 22. Nxh5 {[%clk 0:00:34.6]} 22... Bxh4
{[%clk 0:00:03.6]} 23. Rg7 {[%clk 0:00:32.2]} 23... Qe8 {[%clk 0:00:01.9]} 24.
Ng3 {[%clk 0:00:28.5]} 1-0

[Event "*** SCC Grand Prix: Titled Tuesday Blitz"]
[Site "Chess.com"]
[Date "2020.08.11"]
[Round "3"]
[White "okriak"]
[Black "Gulkov_Igor"]
[Result "1-0"]
[WhiteElo "2765"]
[BlackElo "2414"]
[TimeControl "180+1"]
[EndTime "10:28:50 PDT"]
[Termination "okriak won on time"]

1. Nf3 {[%clk 0:03:00.9]} 1... Nf6 {[%clk 0:02:58.8]} 2. c4 {[%clk 0:03:00.6]}
2... g6 {[%clk 0:02:59.1]} 3. Nc3 {[%clk 0:03:00.6]} 3... Bg7 {[%clk 0:02:59.7]}
4. e4 {[%clk 0:03:00.7]} 4... d6 {[%clk 0:03:00]} 5. d4 {[%clk 0:03:01.2]} 5...
O-O {[%clk 0:02:59.8]} 6. h3 {[%clk 0:03:01.9]} 6... c5 {[%clk 0:02:58.6]} 7. d5
{[%clk 0:03:00.7]} 7... b5 {[%clk 0:02:58.3]} 8. cxb5 {[%clk 0:02:58.2]} 8... a6
{[%clk 0:02:58.5]} 9. a4 {[%clk 0:02:57.1]} 9... Qa5 {[%clk 0:02:58.3]} 10. Bd2
{[%clk 0:02:56.8]} 10... Qb4 {[%clk 0:02:58]} 11. Qc2 {[%clk 0:02:49.1]} 11...
axb5 {[%clk 0:02:53.4]} 12. Bxb5 {[%clk 0:02:48.6]} 12... Ba6 {[%clk 0:02:52.9]}
13. O-O {[%clk 0:02:48.4]} 13... Bxb5 {[%clk 0:02:46.8]} 14. axb5 {[%clk
0:02:48.2]} 14... Nbd7 {[%clk 0:02:46.8]} 15. Rfe1 {[%clk 0:02:35.6]} 15... Nb6
{[%clk 0:02:38.7]} 16. Ra6 {[%clk 0:02:24.1]} 16... Nc4 {[%clk 0:02:21.8]} 17.
Rea1 {[%clk 0:02:10.7]} 17... Rxa6 {[%clk 0:02:18.4]} 18. bxa6 {[%clk
0:02:10.3]} 18... Nxd2 {[%clk 0:01:32.9]} 19. Nxd2 {[%clk 0:02:06.1]} 19... Ra8
{[%clk 0:01:27.2]} 20. Ra2 {[%clk 0:02:01]} 20... Ne8 {[%clk 0:01:19]} 21. a7
{[%clk 0:01:51.9]} 21... Nc7 {[%clk 0:01:09.5]} 22. Ndb1 {[%clk 0:01:41]} 22...
e6 {[%clk 0:01:02.7]} 23. Qa4 {[%clk 0:01:35.3]} 23... exd5 {[%clk 0:01:00.4]}
24. Qc6 {[%clk 0:00:45]} 24... d4 {[%clk 0:00:07.5]} 25. Qxc7 {[%clk 0:00:44.6]}
25... dxc3 {[%clk 0:00:06.7]} 26. Nxc3 {[%clk 0:00:44.8]} 26... Bxc3 {[%clk
0:00:04.2]} 27. Qc6 {[%clk 0:00:44.8]} 1-0

[Event "*** SCC Grand Prix: Titled Tuesday Blitz"]
[Site "Chess.com"]
[Date "2020.08.11"]
[Round "3"]
[White "ShapkinAnatoliy"]
[Black "2nd_life"]
[Result "1-0"]
[WhiteElo "2752"]
[BlackElo "2476"]
[TimeControl "180+1"]
[EndTime "10:28:51 PDT"]
[Termination "ShapkinAnatoliy won on time"]

1. d4 {[%clk 0:03:00.9]} 1... Nf6 {[%clk 0:02:58.5]} 2. c4 {[%clk 0:02:57.7]}
2... e6 {[%clk 0:02:57.7]} 3. g3 {[%clk 0:02:53.3]} 3... c5 {[%clk 0:02:57.1]}
4. d5 {[%clk 0:02:53.2]} 4... exd5 {[%clk 0:02:57.2]} 5. cxd5 {[%clk 0:02:54.1]}
5... d6 {[%clk 0:02:57.7]} 6. Nc3 {[%clk 0:02:53.8]} 6... g6 {[%clk 0:02:58.1]}
7. Nf3 {[%clk 0:02:54]} 7... Bg7 {[%clk 0:02:58.6]} 8. Bg2 {[%clk 0:02:54.7]}
8... O-O {[%clk 0:02:58.8]} 9. O-O {[%clk 0:02:55.4]} 9... Re8 {[%clk
0:02:59.1]} 10. Nd2 {[%clk 0:02:56]} 10... a6 {[%clk 0:02:57.9]} 11. a4 {[%clk
0:02:55.6]} 11... Nbd7 {[%clk 0:02:57.8]} 12. h3 {[%clk 0:02:54.8]} 12... Rb8
{[%clk 0:02:55.9]} 13. Nc4 {[%clk 0:02:54.4]} 13... Ne5 {[%clk 0:02:48.5]} 14.
Na3 {[%clk 0:02:54.3]} 14... Nh5 {[%clk 0:02:31.7]} 15. e4 {[%clk 0:02:53.6]}
15... Qc7 {[%clk 0:01:42.6]} 16. g4 {[%clk 0:02:47.6]} 16... Nf6 {[%clk
0:01:39.9]} 17. f4 {[%clk 0:02:46.2]} 17... Nexg4 {[%clk 0:01:15.5]} 18. hxg4
{[%clk 0:02:45.5]} 18... Nxg4 {[%clk 0:01:16.4]} 19. f5 {[%clk 0:02:28.9]} 19...
h5 {[%clk 0:01:15.8]} 20. Bg5 {[%clk 0:02:27.7]} 20... c4 {[%clk 0:01:07.3]} 21.
f6 {[%clk 0:02:24.8]} 21... Qc5+ {[%clk 0:01:03.4]} 22. Kh1 {[%clk 0:02:24.7]}
22... Bf8 {[%clk 0:00:48.7]} 23. Qe2 {[%clk 0:02:24.2]} 23... b5 {[%clk
0:00:45.2]} 24. axb5 {[%clk 0:02:25.1]} 24... axb5 {[%clk 0:00:45.4]} 25. Nc2
{[%clk 0:02:14.7]} 25... Bd7 {[%clk 0:00:37]} 26. Ne3 {[%clk 0:02:05.5]} 26...
b4 {[%clk 0:00:29.4]} 27. Ncd1 {[%clk 0:02:05]} 27... c3 {[%clk 0:00:27.6]} 28.
bxc3 {[%clk 0:02:05.9]} 28... bxc3 {[%clk 0:00:27.1]} 29. Rc1 {[%clk 0:02:06.4]}
29... Bb5 {[%clk 0:00:24.3]} 30. Qf3 {[%clk 0:01:56.8]} 30... Bxf1 {[%clk
0:00:23.4]} 31. Bxf1 {[%clk 0:01:52.8]} 31... Qd4 {[%clk 0:00:16.9]} 32. Bg2
{[%clk 0:01:43.9]} 32... Qd2 {[%clk 0:00:11.6]} 33. Rxc3 {[%clk 0:01:34.8]}
33... Rb1 {[%clk 0:00:11]} 34. Rc2 {[%clk 0:01:23.1]} 34... Rxd1+ {[%clk
0:00:04.8]} 35. Qxd1 {[%clk 0:01:17.1]} 35... Nf2+ {[%clk 0:00:03.1]} 36. Kg1
{[%clk 0:01:17.4]} 36... Qxe3 {[%clk 0:00:02.2]} 37. Bxe3 {[%clk 0:01:10.6]}
37... Nxd1 {[%clk 0:00:02.3]} 38. Bd4 {[%clk 0:01:10.7]} 38... Bh6 {[%clk
0:00:02.3]} 39. Re2 {[%clk 0:01:07.4]} 39... Bf4 {[%clk 0:00:01.5]} 40. Re1
{[%clk 0:01:06.4]} 1-0

[Event "*** SCC Grand Prix: Titled Tuesday Blitz"]
[Site "Chess.com"]
[Date "2020.08.11"]
[Round "3"]
[White "pavelalexandru07"]
[Black "pastouche06"]
[Result "0-1"]
[WhiteElo "2205"]
[BlackElo "2497"]
[TimeControl "180+1"]
[EndTime "10:28:51 PDT"]
[Termination "pastouche06 won by resignation"]

1. e4 {[%clk 0:03:00.9]} 1... c6 {[%clk 0:03:00]} 2. d4 {[%clk 0:03:00.6]} 2...
d5 {[%clk 0:03:00.6]} 3. e5 {[%clk 0:03:00.8]} 3... Bf5 {[%clk 0:02:59.8]} 4.
Nf3 {[%clk 0:03:01.4]} 4... e6 {[%clk 0:02:59.7]} 5. Be2 {[%clk 0:03:01.9]} 5...
Ne7 {[%clk 0:03:00.1]} 6. O-O {[%clk 0:03:01.7]} 6... Ng6 {[%clk 0:03:00.7]} 7.
Re1 {[%clk 0:02:56]} 7... Nd7 {[%clk 0:02:59.7]} 8. Bf1 {[%clk 0:02:55.9]} 8...
f6 {[%clk 0:02:52.7]} 9. exf6 {[%clk 0:02:48.4]} 9... Qxf6 {[%clk 0:02:53.6]}
10. Bg5 {[%clk 0:02:42.4]} 10... Qf7 {[%clk 0:02:53.7]} 11. Nbd2 {[%clk
0:02:36]} 11... Bd6 {[%clk 0:02:50.7]} 12. h3 {[%clk 0:02:33.5]} 12... h6 {[%clk
0:02:42.6]} 13. Be3 {[%clk 0:02:28.2]} 13... O-O {[%clk 0:02:42.4]} 14. c4
{[%clk 0:02:18]} 14... Nf4 {[%clk 0:02:38]} 15. Rc1 {[%clk 0:01:49.1]} 15... Nd3
{[%clk 0:02:17.5]} 16. Bxd3 {[%clk 0:01:48.5]} 16... Bxd3 {[%clk 0:02:18.4]} 17.
a3 {[%clk 0:01:43.5]} 17... Rae8 {[%clk 0:02:13.5]} 18. b4 {[%clk 0:01:41.7]}
18... Bb8 {[%clk 0:01:42.5]} 19. Qb3 {[%clk 0:01:40.1]} 19... Bf5 {[%clk
0:01:39.3]} 20. b5 {[%clk 0:01:38.6]} 20... Nb6 {[%clk 0:01:33.2]} 21. a4 {[%clk
0:01:29]} 21... dxc4 {[%clk 0:01:25.2]} 22. Qb4 {[%clk 0:01:20.1]} 22... cxb5
{[%clk 0:01:20.4]} 23. axb5 {[%clk 0:01:04.9]} 23... Nd5 {[%clk 0:01:14.5]} 24.
Qxc4 {[%clk 0:01:02.7]} 24... Nxe3 {[%clk 0:01:14.8]} 25. Rxe3 {[%clk
0:00:53.9]} 25... Bf4 {[%clk 0:01:14.7]} 26. Re2 {[%clk 0:00:45.1]} 26... Qg6
{[%clk 0:01:11.4]} 27. Nh4 {[%clk 0:00:33.5]} 27... Qg5 {[%clk 0:01:08.3]} 28.
Nxf5 {[%clk 0:00:33.4]} 28... Qxf5 {[%clk 0:01:08.5]} 29. Rd1 {[%clk 0:00:28.7]}
29... Rf6 {[%clk 0:01:08.2]} 30. Qb3 {[%clk 0:00:28.3]} 30... Rg6 {[%clk
0:01:07.4]} 31. Kh1 {[%clk 0:00:26.7]} 31... Rf8 {[%clk 0:01:03.7]} 32. Ne4
{[%clk 0:00:22.5]} 32... Bb8 {[%clk 0:01:00.4]} 33. d5 {[%clk 0:00:21.8]} 33...
Qe5 {[%clk 0:00:42.1]} 34. g3 {[%clk 0:00:18.5]} 34... Qh5 {[%clk 0:00:42.4]}
35. h4 {[%clk 0:00:17.2]} 35... Qxe2 {[%clk 0:00:42.2]} 0-1

[Event "*** SCC Grand Prix: Titled Tuesday Blitz"]
[Site "Chess.com"]
[Date "2020.08.11"]
[Round "3"]
[White "Zq1"]
[Black "MVM2008"]
[Result "1-0"]
[WhiteElo "2501"]
[BlackElo "2213"]
[TimeControl "180+1"]
[EndTime "10:28:53 PDT"]
[Termination "Zq1 won on time"]

1. Nf3 {[%clk 0:03:00.9]} 1... Nf6 {[%clk 0:02:58.9]} 2. c4 {[%clk 0:03:00.6]}
2... d5 {[%clk 0:02:54.3]} 3. cxd5 {[%clk 0:02:59.5]} 3... Nxd5 {[%clk
0:02:55.2]} 4. e4 {[%clk 0:02:52.2]} 4... Nb6 {[%clk 0:02:48.1]} 5. d4 {[%clk
0:02:50.2]} 5... e6 {[%clk 0:02:47.9]} 6. Nc3 {[%clk 0:02:48.2]} 6... c6 {[%clk
0:02:22.6]} 7. Bd3 {[%clk 0:02:42.4]} 7... N8d7 {[%clk 0:02:09.4]} 8. O-O {[%clk
0:02:38.4]} 8... Be7 {[%clk 0:02:02.7]} 9. Qe2 {[%clk 0:02:34.6]} 9... Nf8
{[%clk 0:01:55.3]} 10. Rd1 {[%clk 0:02:23.3]} 10... Ng6 {[%clk 0:01:45.7]} 11.
g3 {[%clk 0:02:22.3]} 11... O-O {[%clk 0:01:38.2]} 12. h4 {[%clk 0:02:21.3]}
12... Re8 {[%clk 0:01:28.4]} 13. h5 {[%clk 0:02:16]} 13... Nf8 {[%clk
0:01:28.1]} 14. h6 {[%clk 0:02:16.2]} 14... g6 {[%clk 0:01:26.7]} 15. e5 {[%clk
0:02:14.9]} 15... Nd5 {[%clk 0:01:25.3]} 16. Ne4 {[%clk 0:02:13.6]} 16... f5
{[%clk 0:01:09]} 17. exf6 {[%clk 0:02:11.8]} 17... Nxf6 {[%clk 0:01:07.3]} 18.
Bf4 {[%clk 0:01:53.2]} 18... Nd5 {[%clk 0:00:52.7]} 19. Be5 {[%clk 0:01:49.6]}
19... Bf6 {[%clk 0:00:31.7]} 20. Nxf6+ {[%clk 0:01:47]} 20... Nxf6 {[%clk
0:00:31.5]} 21. Bc4 {[%clk 0:01:41.1]} 21... N8d7 {[%clk 0:00:27.8]} 22. Bf4
{[%clk 0:01:27.5]} 22... Nb6 {[%clk 0:00:22.5]} 23. Bb3 {[%clk 0:01:18.8]} 23...
Nbd5 {[%clk 0:00:20.9]} 24. Bg5 {[%clk 0:01:18.8]} 24... Qe7 {[%clk 0:00:11.2]}
25. Ne5 {[%clk 0:01:12.3]} 25... Qf8 {[%clk 0:00:10.7]} 26. Rd3 {[%clk
0:01:07.6]} 26... Qd6 {[%clk 0:00:06.2]} 27. Rf3 {[%clk 0:00:55.7]} 27... Nh5
{[%clk 0:00:04.7]} 28. Re1 {[%clk 0:00:47.9]} 28... b6 {[%clk 0:00:01.4]} 29. g4
{[%clk 0:00:38.7]} 1-0

[Event "*** SCC Grand Prix: Titled Tuesday Blitz"]
[Site "Chess.com"]
[Date "2020.08.11"]
[Round "3"]
[White "Sekar24"]
[Black "GMJustin"]
[Result "1-0"]
[WhiteElo "2516"]
[BlackElo "2285"]
[TimeControl "180+1"]
[EndTime "10:28:54 PDT"]
[Termination "Sekar24 won on time"]

1. e4 {[%clk 0:03:00.9]} 1... e5 {[%clk 0:02:31]} 2. Nf3 {[%clk 0:03:00.8]} 2...
Nc6 {[%clk 0:02:28.1]} 3. Bb5 {[%clk 0:03:01.2]} 3... a6 {[%clk 0:02:23.5]} 4.
Ba4 {[%clk 0:03:00.7]} 4... b5 {[%clk 0:02:23.5]} 5. Bb3 {[%clk 0:03:00.2]} 5...
Na5 {[%clk 0:02:23.3]} 6. Nxe5 {[%clk 0:02:48]} 6... Nxb3 {[%clk 0:02:18.7]} 7.
axb3 {[%clk 0:02:48.9]} 7... Qe7 {[%clk 0:02:09.9]} 8. d4 {[%clk 0:02:42.8]}
8... d6 {[%clk 0:02:06]} 9. Nf3 {[%clk 0:02:42.7]} 9... Qxe4+ {[%clk 0:02:03]}
10. Be3 {[%clk 0:02:43.1]} 10... Nf6 {[%clk 0:01:59.4]} 11. O-O {[%clk 0:02:42]}
11... Be7 {[%clk 0:01:49.8]} 12. Re1 {[%clk 0:02:39.5]} 12... Qc6 {[%clk
0:01:38.7]} 13. Bg5 {[%clk 0:02:35.8]} 13... Bg4 {[%clk 0:00:42.1]} 14. Nbd2
{[%clk 0:01:42.5]} 14... Qd7 {[%clk 0:00:18.1]} 15. Qe2 {[%clk 0:01:40.3]} 15...
Kf8 {[%clk 0:00:16.5]} 16. h3 {[%clk 0:01:31.8]} 16... Bh5 {[%clk 0:00:13.4]}
17. c4 {[%clk 0:01:17.6]} 17... c6 {[%clk 0:00:03.4]} 18. Qd3 {[%clk 0:01:02.1]}
18... h6 {[%clk 0:00:02]} 19. Be3 {[%clk 0:00:55.7]} 19... g5 {[%clk 0:00:01.1]}
20. Nh2 {[%clk 0:00:43.4]} 20... Bg6 {[%clk 0:00:01.4]} 21. Qc3 {[%clk
0:00:42.4]} 21... Kg7 {[%clk 0:00:01.5]} 22. d5 {[%clk 0:00:31.7]} 22... cxd5
{[%clk 0:00:01.6]} 23. Bd4 {[%clk 0:00:31]} 1-0